bitfinex/quotes_SOLUSD_20230101
["timestamp","ask_amount","ask_price","bid_price","bid_amount"]
[1672550786333,76.74,9.7847,9.7742,345.8]
[1672550786537,76.74,9.7847,9.7744,40.0]
[1672550786952,76.74,9.7847,9.7747,40.0]
[1672550787169,76.74,9.7847,9.7749,40.0]
[1672550787485,76.74,9.7847,9.775,17.0]
[1672550787803,76.74,9.7847,9.7752,40.0]
[1672550787994,76.74,9.7847,9.7753,17.0]
[1672550788206,76.74,9.7847,9.7754,305.8]
[1672550788410,20.0,9.7848,9.7755,40.0]
[1672550788842,20.0,9.7848,9.7757,40.0]
[1672550789171,76.74,9.7847,9.7757,40.0]
[1672550792418,76.74,9.7847,9.7758,17.0]
[1672550795354,20.0,9.7848,9.7758,17.0]
[1672550795988,20.0,9.7847,9.7758,17.0]
[1672550796298,20.0,9.7851,9.7757,40.0]
[1672550796729,96.73,9.7851,9.7757,40.0]
[1672550798515,171.46800823,9.7851,9.7757,40.0]
[1672550799047,96.73,9.7851,9.7758,17.0]
[1672550799265,20.0,9.7851,9.7758,17.0]
[1672550799791,20.0,9.7851,9.7757,40.0]
[1672550800103,76.73,9.785,9.7757,40.0]
[1672550800626,20.0,9.7849,9.7757,40.0]
[1672550800944,20.0,9.7849,9.7758,17.0]
[1672550801143,20.0,9.7849,9.7759,40.0]
[1672550801466,20.0,9.7851,9.776,17.0]
[1672550801868,94.73800823,9.7851,9.776,17.0]
[1672550802289,94.73800823,9.7851,9.7759,40.0]
[1672550802495,40.0,9.7849,9.7756,305.8]
[1672550802714,96.74,9.7848,9.7756,305.8]
[1672550802924,40.0,9.7847,9.7756,305.8]
[1672550803135,76.74,9.7846,9.7756,305.8]
[1672550803679,76.74,9.7847,9.7756,305.8]
[1672550805035,76.74,9.7847,9.7757,40.0]
[1672550807243,151.47800823,9.7847,9.7757,40.0]
[1672550807678,151.47800823,9.7847,9.7756,305.8]
[1672550807868,151.47800823,9.7847,9.7757,40.0]
[1672550808079,74.73800823,9.7845,9.7757,40.0]
[1672550808284,76.74,9.7844,9.7757,40.0]
[1672550809033,76.74,9.7844,9.7756,305.8]
[1672550809246,151.47800823,9.7844,9.7756,305.8]
[1672550809882,40.0,9.7843,9.7756,305.8]
[1672550810075,76.74,9.7842,9.7756,305.8]
[1672550810281,74.73800823,9.7841,9.7756,305.8]
[1672550810511,76.74,9.784,9.7756,305.8]
[1672550810724,76.74,9.784,9.7757,40.0]
[1672550811246,151.47800823,9.784,9.7757,40.0]
[1672550811461,151.47800823,9.784,9.7756,305.8]
[1672550811880,151.47800823,9.784,9.7757,40.0]
[1672550812397,74.73800823,9.7836,9.7757,40.0]
[1672550812597,76.74,9.7847,9.7757,40.0]
[1672550813877,151.47800823,9.7847,9.7757,40.0]
[1672550814496,74.73800823,9.7842,9.7757,40.0]
[1672550814709,76.74,9.7841,9.7757,40.0]
[1672550816194,74.73800823,9.7834,9.7757,40.0]
[1672550818165,74.73800823,9.7819,9.7757,40.0]
[1672550818386,74.73800823,9.7818,9.7758,17.0]
[1672550819347,74.73800823,9.7819,9.7758,17.0]
[1672550820292,74.73800823,9.7818,9.7758,17.0]
[1672550822493,74.73800823,9.7818,9.7759,15.80730786]
[1672550822692,74.73800823,9.7819,9.7761,40.0]
[1672550822913,110.8577,9.7846,9.7762,17.0]
[1672550822914,74.73800823,9.782,9.7762,17.0]
[1672550823228,74.73800823,9.782,9.7762,32.80730786]
[1672550823437,74.73800823,9.7819,9.7763,40.0]
[1672550823653,74.73800823,9.7819,9.7764,17.0]
[1672550824079,74.73800823,9.782,9.7764,17.0]
[1672550824294,110.8577,9.7846,9.7765,345.8]
[1672550824603,110.8577,9.7846,9.7766,17.0]
[1672550824996,110.8577,9.7846,9.7767,40.0]
[1672550825210,110.8577,9.7846,9.7768,17.0]
[1672550825426,110.8577,9.7846,9.7769,345.8]
[1672550825635,110.8577,9.7846,9.777,17.0]
[1672550825846,110.8577,9.7846,9.777,32.80730786]
[1672550826061,110.8577,9.7846,9.7771,40.0]
[1672550826276,110.8577,9.7846,9.7773,40.0]
[1672550826491,110.8577,9.7846,9.7774,17.0]
[1672550826682,110.8577,9.7846,9.7774,32.80730786]
[1672550826890,110.8577,9.7846,9.7775,55.80730786]
[1672550827140,110.8577,9.7846,9.7777,40.0]
[1672550827531,110.8577,9.7846,9.7779,40.0]
[1672550828060,110.8577,9.7846,9.7781,40.0]
[1672550828269,110.8577,9.7846,9.7782,17.0]
[1672550828470,110.8577,9.7846,9.7783,40.0]
[1672550828675,110.8577,9.7846,9.7785,40.0]
[1672550828889,110.8577,9.7846,9.7786,17.0]
[1672550829100,20.0,9.7848,9.7786,32.80730786]
[1672550829413,96.71,9.788,9.7787,15.80730786]
[1672550829630,96.71,9.788,9.7789,40.0]
[1672550830059,96.71,9.788,9.779,17.0]
[1672550831762,76.71,9.788,9.7791,305.8]
[1672550831966,74.73800823,9.7915,9.7792,17.0]
[1672550832185,76.68,9.7914,9.7793,366.85]
[1672550832400,151.41800823,9.7921,9.7794,17.0]
[1672550832585,151.41800823,9.7921,9.7796,40.0]
[1672550832898,76.68,9.7921,9.7799,40.0]
[1672550833101,151.40800823,9.793,9.7801,40.0]
[1672550833315,76.67,9.793,9.7802,24.98]
[1672550833532,151.40800823,9.793,9.7804,40.0]
[1672550833736,151.40800823,9.793,9.7805,27.39]
[1672550833952,74.73800823,9.7933,9.7806,362.8]
[1672550834169,76.67,9.7932,9.7808,40.0]
[1672550834375,193.5644,9.7935,9.7811,40.0]
[1672550834589,193.5644,9.7935,9.7812,47.48]
[1672550834804,193.5644,9.7935,9.7813,345.8]
[1672550835021,116.8944,9.7934,9.7815,40.0]
[1672550835219,76.67,9.7933,9.7816,50.76]
[1672550835438,76.67,9.7933,9.7817,40.0]
[1672550835641,116.8944,9.7932,9.7818,356.72]
[1672550835857,76.67,9.7931,9.7819,40.0]
[1672550836066,76.67,9.7931,9.7821,40.0]
[1672550836383,76.67,9.7931,9.7823,40.0]
[1672550836581,76.67,9.7931,9.7824,34.1]
[1672550836786,76.67,9.7931,9.7825,362.8]
[1672550837099,116.8944,9.7932,9.7827,345.8]
[1672550837315,116.8944,9.7932,9.7833,305.8]
[1672550837524,116.8944,9.7932,9.7835,305.8]
[1672550837738,116.8944,9.7932,9.7837,305.8]
[1672550837952,116.8944,9.7932,9.7839,345.8]
[1672550838160,116.8944,9.7932,9.7841,305.8]
[1672550838368,76.67,9.7931,9.7842,40.0]
[1672550839620,76.67,9.7931,9.7843,17.0]
[1672550840357,116.8944,9.7932,9.7842,40.0]
[1672550840783,76.67,9.7931,9.7842,40.0]
[1672550841836,76.67,9.7931,9.7843,17.0]
[1672550843435,76.67,9.7931,9.7843,12.0]
[1672550847325,116.8944,9.7932,9.7845,305.8]
[1672550847511,116.8944,9.7932,9.7847,40.0]
[1672550847720,116.8944,9.7932,9.7847,345.8]
[1672550847930,116.8944,9.7932,9.7849,345.8]
[1672550848158,116.8944,9.7932,9.7851,40.0]
[1672550848366,116.8944,9.7932,9.7851,345.8]
[1672550848569,116.8944,9.7932,9.7853,345.8]
[1672550848781,116.8944,9.7932,9.7856,40.0]
[1672550848991,116.8944,9.7932,9.7858,305.8]
[1672550849309,116.8944,9.7932,9.7857,83.33583]
[1672550849310,116.8944,9.7932,9.7861,40.0]
[1672550849509,116.8944,9.7932,9.7863,40.0]
[1672550849715,116.8944,9.7932,9.7864,17.0]
[1672550849933,116.8944,9.7932,9.7865,40.0]
[1672550850138,40.0,9.8044,9.7867,40.0]
[1672550850343,40.0,9.8042,9.7867,40.0]
[1672550850553,76.59,9.8041,9.787,40.0]
[1672550850773,40.0,9.8046,9.787,40.0]
[1672550850774,40.0,9.8042,9.7872,305.8]
[1672550850979,76.59,9.8041,9.7874,305.8]
[1672550851190,40.0,9.804,9.7877,40.0]
[1672550851407,40.0,9.8038,9.7879,305.8]
[1672550851615,76.59,9.8037,9.7881,40.0]
[1672550851828,40.0,9.8044,9.7884,40.0]
[1672550852024,40.0,9.8042,9.7886,40.0]
[1672550852235,76.59,9.8041,9.7887,17.0]
[1672550852445,76.59,9.8041,9.7888,325.8]
[1672550852669,40.0,9.804,9.789,305.8]
[1672550852879,40.0,9.8038,9.7891,57.0]
[1672550853084,76.59,9.8037,9.783,25.53]
[1672550853291,40.0,9.8036,9.783,108.1558]
[1672550853513,40.0,9.8034,9.783,108.1558]
[1672550853723,76.59,9.8033,9.7831,40.0]
[1672550854033,60.0,9.8032,9.7831,345.8]
[1672550854239,76.59,9.8031,9.7831,305.8]
[1672550854442,40.0,9.8029,9.7831,305.8]
[1672550854675,40.0,9.8027,9.7832,40.0]
[1672550854980,40.0,9.8025,9.7832,40.0]
[1672550855202,76.6,9.8024,9.7832,40.0]
[1672550855396,60.0,9.8023,9.7834,40.0]
[1672550855604,40.0,9.8021,9.7835,17.0]
[1672550855932,40.0,9.8019,9.7835,17.0]
[1672550856138,40.0,9.8017,9.7835,17.0]
[1672550856358,96.6,9.8016,9.7837,40.0]
[1672550856546,149.94976218,9.8016,9.7838,17.0]
[1672550856757,106.46028465,9.8015,9.784,40.0]
[1672550856976,96.61,9.8014,9.7842,40.0]
[1672550857174,40.0,9.8013,9.7843,24.453]
[1672550857401,96.61,9.8012,9.7844,345.8]
[1672550857601,40.0,9.8011,9.7846,40.0]
[1672550857821,40.0,9.8009,9.7847,7.453]
[1672550858017,96.61,9.8008,9.7848,17.0]
[1672550858229,96.61,9.8008,9.785,40.0]
[1672550858462,96.61,9.8008,9.7851,24.299]
[1672550858777,40.0,9.8007,9.7852,345.8]
[1672550858990,96.61,9.8006,9.7854,40.0]
[1672550859305,76.61,9.8006,9.7857,40.0]
[1672550859517,76.59,9.8037,9.7859,18.86544]
[1672550859714,40.0,9.8038,9.7861,40.0]
[1672550859924,76.59,9.8037,9.7864,40.0]
[1672550860237,76.59,9.8041,9.7867,40.0]
[1672550860448,40.0,9.8044,9.7869,305.8]
[1672550860664,40.0,9.8042,9.7871,40.0]
[1672550860878,96.59,9.8041,9.7874,40.0]
[1672550861196,96.59,9.8041,9.7877,40.0]
[1672550861412,96.59,9.8041,9.7879,345.8]
[1672550861596,96.59,9.8041,9.788,27.047]
[1672550861929,96.59,9.8041,9.7882,40.0]
[1672550862243,96.59,9.8041,9.7885,40.0]
[1672550862454,96.59,9.8041,9.7887,305.8]
[1672550862665,96.59,9.8041,9.7889,40.0]
[1672550862877,76.59,9.8041,9.7891,40.0]
[1672550863075,40.0,9.8124,9.7892,44.046]
[1672550863285,54.12530598,9.8072,9.7894,40.0]
[1672550863502,116.56,9.8071,9.7896,305.8]
[1672550863714,40.0,9.807,9.7898,40.0]
[1672550864033,40.0,9.8068,9.7899,7.046]
[1672550864244,40.0,9.8066,9.7901,40.0]
[1672550864448,96.57,9.8065,9.7901,40.0]
[1672550864662,40.0,9.8064,9.7903,305.8]
[1672550864868,40.0,9.8062,9.7905,305.8]
[1672550865080,96.57,9.8061,9.7907,40.0]
[1672550865292,40.0,9.806,9.7907,40.0]
[1672550865612,40.0,9.8058,9.791,40.0]
[1672550865931,40.0,9.8056,9.7911,17.0]
[1672550866243,40.0,9.8054,9.7913,40.0]
[1672550866551,40.0,9.8052,9.7914,17.0]
[1672550866762,40.0,9.805,9.7916,40.0]
[1672550866961,40.0,9.8048,9.7916,40.0]
[1672550867165,40.0,9.8046,9.7916,40.0]
[1672550867374,96.58,9.8045,9.7919,40.0]
[1672550867604,40.0,9.8044,9.7919,40.0]
[1672550867814,40.0,9.8042,9.7919,40.0]
[1672550868028,40.0,9.804,9.7921,305.8]
[1672550868234,96.59,9.8039,9.7921,305.8]
[1672550868426,40.0,9.8038,9.7921,305.8]
[1672550868636,40.0,9.8036,9.7923,305.8]
[1672550868865,76.59,9.8035,9.7923,305.8]
[1672550869072,40.0,9.8034,9.7923,305.8]
[1672550869267,40.0,9.8034,9.7925,305.8]
[1672550869268,40.0,9.8032,9.7925,305.8]
[1672550869480,76.59,9.8031,9.7926,40.0]
[1672550869699,86.8634,9.8034,9.7927,17.0]
[1672550869700,40.0,9.8032,9.7927,17.0]
[1672550869914,46.9744,9.803,9.7929,40.0]
[1672550870119,76.59,9.8029,9.7929,40.0]
[1672550870445,40.0,9.8028,9.7929,40.0]
[1672550870656,76.6,9.8027,9.7931,305.8]
[1672550870869,40.0,9.8026,9.7931,305.8]
[1672550871059,40.0,9.8024,9.7931,305.8]
[1672550871267,40.0,9.8022,9.7933,305.8]
[1672550871485,76.6,9.8021,9.7933,305.8]
[1672550871699,32.5,9.802,9.7933,305.8]
[1672550871912,40.0,9.8018,9.7934,23.1949]
[1672550872126,76.6,9.8017,9.7934,23.1949]
[1672550872545,76.6,9.8017,9.7933,305.8]
[1672550872546,24.4069,9.8016,9.7935,23.1949]
[1672550872957,76.61,9.8015,9.7937,305.8]
[1672550873163,76.61,9.8015,9.7939,40.0]
[1672550873164,23.0756,9.8015,9.7939,40.0]
[1672550873371,23.0756,9.8015,9.7937,305.8]
[1672550873585,23.0756,9.8015,9.7938,17.0]
[1672550873795,23.0756,9.8015,9.7939,40.0]
[1672550874006,23.0756,9.8015,9.794,17.0]
[1672550874225,23.0756,9.8015,9.7941,6.833]
[1672550874548,23.0756,9.8015,9.7943,40.0]
[1672550874856,23.0756,9.8015,9.7944,17.0]
[1672550875262,23.0756,9.8015,9.7945,40.0]
[1672550875471,23.0756,9.8015,9.7946,322.8]
[1672550875688,23.0756,9.8015,9.7948,40.0]
[1672550875914,23.0756,9.8015,9.7949,17.0]
[1672550876745,23.0756,9.8015,9.795,40.0]
[1672550876951,23.0756,9.8015,9.7951,17.0]
[1672550877275,23.0756,9.8015,9.7953,40.0]
[1672550877485,23.0756,9.8015,9.7954,23.699]
[1672550877799,23.0756,9.8015,9.7954,17.0]
[1672550878416,23.0756,9.8015,9.7956,40.0]
[1672550878743,23.0756,9.8015,9.7958,345.8]
[1672550878947,23.0756,9.8015,9.7959,35.84618]
[1672550879160,23.0756,9.8015,9.7961,305.8]
[1672550879372,23.0756,9.8015,9.7963,40.0]
[1672550879580,23.0756,9.8015,9.7965,40.0]
[1672550879784,23.0756,9.8015,9.7966,6.586]
[1672550879991,23.0756,9.8015,9.7968,40.0]
[1672550880201,23.0756,9.8015,9.7969,17.0]
[1672550880426,23.0756,9.8015,9.797,305.8]
[1672550880641,23.0756,9.8015,9.7972,40.0]
[1672550880846,23.0756,9.8015,9.7972,345.8]
[1672550881064,23.0756,9.8015,9.7973,17.0]
[1672550881696,23.0756,9.8015,9.7974,40.0]
[1672550881883,23.0756,9.8015,9.7975,17.0]
[1672550882094,23.0756,9.8015,9.7975,16.0]
[1672550882412,23.6663,9.8026,9.7975,16.0]
[1672550883985,23.6663,9.8026,9.7973,305.8]
[1672550884948,23.6663,9.8026,9.7975,40.0]
[1672550886740,23.6663,9.8026,9.7944,6.593]
[1672550886956,23.6663,9.8026,9.7954,17.0]
[1672550887584,23.6663,9.8026,9.7955,6.718]
[1672550887785,23.6663,9.8026,9.7957,304.8]
[1672550887991,23.6663,9.8026,9.7959,40.0]
[1672550888402,23.6663,9.8026,9.796,17.0]
[1672550889155,22.6663,9.8026,9.796,17.0]
[1672550890950,22.6663,9.8026,9.796,23.638]
[1672550891130,22.6663,9.8026,9.796,17.0]
[1672550892098,22.6663,9.8026,9.7959,17.0]
[1672550892509,22.6663,9.8026,9.796,6.662]
[1672550892722,22.6663,9.8026,9.7962,40.0]
[1672550892943,22.6663,9.8026,9.7963,17.0]
[1672550893135,22.6663,9.8026,9.7964,344.8]
[1672550893347,22.6663,9.8026,9.7965,17.0]
[1672550898290,22.6663,9.8026,9.7965,321.8]
[1672550898497,22.6663,9.8026,9.7966,40.0]
[1672550898702,22.6663,9.8026,9.7965,321.8]
[1672550898703,22.6663,9.8026,9.7965,304.8]
[1672550898930,40.0,9.8025,9.7965,304.8]
[1672550899249,40.0,9.8023,9.7965,304.8]
[1672550899566,40.0,9.8021,9.7966,304.8]
[1672550900400,24.5462,9.8022,9.7967,304.8]
[1672550900609,24.5462,9.802,9.7967,304.8]
[1672550901438,24.5462,9.802,9.7941,40.0]
[1672550902396,24.5462,9.802,9.7942,17.0]
[1672550904186,40.0,9.8019,9.7935,304.8]
[1672550904601,23.451,9.8019,9.7935,304.8]
[1672550904925,23.451,9.8019,9.7936,40.0]
[1672550905447,23.451,9.8019,9.7941,17.0]
[1672550905657,23.451,9.8019,9.7942,40.0]
[1672550905870,23.451,9.8019,9.7943,17.0]
[1672550907020,23.451,9.8019,9.7944,40.0]
[1672550907230,23.451,9.8019,9.7945,17.0]
[1672550913115,23.451,9.8019,9.7946,6.831]
[1672550913314,23.451,9.8019,9.7948,40.0]
[1672550913524,23.451,9.8019,9.7949,23.83]
[1672550914167,23.451,9.8019,9.7949,17.0]
[1672550916153,23.451,9.8019,9.7949,23.803]
[1672550916364,23.451,9.8019,9.7949,17.0]
[1672550916574,23.451,9.8019,9.795,40.0]
[1672550916787,23.451,9.8019,9.7952,40.0]
[1672550917006,23.451,9.8019,9.7953,17.0]
[1672550917223,23.451,9.8019,9.7955,40.0]
[1672550917421,23.451,9.8019,9.7956,17.0]
[1672550920168,23.451,9.8019,9.7957,40.0]
[1672550920368,23.451,9.8019,9.7958,17.0]
[1672550921868,23.451,9.8019,9.796,304.8]
[1672550922185,23.451,9.8019,9.7961,17.0]
[1672550922381,23.451,9.8019,9.7962,40.0]
[1672550922711,23.451,9.8019,9.7963,17.0]
[1672550923757,23.451,9.8019,9.7964,40.0]
[1672550924065,23.451,9.8019,9.7966,40.0]
[1672550924277,23.451,9.8019,9.7967,17.0]
[1672550926493,23.451,9.8019,9.796,304.8]
[1672550926494,23.451,9.8019,9.7961,40.0]
[1672550928573,23.451,9.8019,9.7962,17.0]
[1672550928913,23.451,9.8019,9.7962,304.8]
[1672550929102,23.451,9.8019,9.7963,17.0]
[1672550929523,23.451,9.8019,9.7964,40.0]
[1672550929746,23.451,9.8019,9.7965,17.0]
[1672550932919,23.451,9.8019,9.7962,17.0]
[1672550935729,23.451,9.8019,9.7963,15.80730786]
[1672550935934,23.451,9.8019,9.7965,40.0]
[1672550936139,23.451,9.8019,9.7966,17.0]
[1672550936349,23.451,9.8019,9.7967,344.8]
[1672550936579,23.451,9.8019,9.7968,17.0]
[1672550938346,40.0,9.8018,9.7955,304.8]
[1672550938562,23.451,9.8019,9.7955,304.8]
[1672550938781,40.0,9.8017,9.7955,304.8]
[1672550938976,76.6,9.8016,9.7955,304.8]
[1672550939402,76.6,9.8016,9.794,24.1047]
[1672550939608,99.8114,9.8018,9.794,24.1047]
[1672550941826,40.0,9.8017,9.794,24.1047]
[1672550942029,76.6,9.8016,9.794,24.1047]
[1672550942446,40.0,9.8015,9.794,24.1047]
[1672550942774,40.0,9.8013,9.794,24.1047]
[1672550942997,40.0,9.8011,9.794,24.1047]
[1672550943173,76.61,9.801,9.794,24.1047]
[1672550943389,40.0,9.8009,9.794,24.1047]
[1672550943710,76.61,9.8008,9.794,24.1047]
[1672550943918,76.61,9.8012,9.794,24.1047]
[1672550944668,40.0,9.8012,9.794,24.1047]
[1672550944982,76.61,9.8011,9.794,24.1047]
[1672550945190,23.2407,9.8014,9.794,24.1047]
[1672550945403,76.61,9.8013,9.794,24.1047]
[1672550948773,23.2407,9.8014,9.794,24.1047]
[1672550948958,23.2407,9.8014,9.7941,32.80730786]
[1672550949172,23.2407,9.8014,9.7942,40.0]
[1672550949506,23.2407,9.8014,9.7943,17.0]
[1672550951589,23.2407,9.8014,9.7943,322.8]
[1672550951811,23.2407,9.8014,9.7944,40.0]
[1672550952032,23.2407,9.8014,9.7945,17.0]
[1672550953697,23.2407,9.8014,9.7947,40.0]
[1672550953902,23.2407,9.8014,9.7948,17.0]
[1672550954119,23.2407,9.8014,9.7948,32.80730786]
[1672550954332,23.2407,9.8014,9.795,305.8]
[1672550954545,23.2407,9.8014,9.7952,40.0]
[1672550954965,23.2407,9.8014,9.795,305.8]
[1672550955183,40.0,9.8013,9.795,305.8]
[1672550955386,23.2407,9.8014,9.7935,305.8]
[1672550956320,23.2407,9.8014,9.7936,40.0]
[1672550958022,23.2407,9.8014,9.7941,17.0]
[1672550958853,23.2407,9.8014,9.7936,40.0]
[1672550959076,23.2407,9.8014,9.7935,305.8]
[1672550959279,23.2407,9.8014,9.7936,40.0]
[1672550963590,23.2407,9.8014,9.7935,305.8]
[1672550964543,23.2407,9.8014,9.7936,40.0]
[1672550965903,23.2407,9.8014,9.7915,13.7]
[1672550966117,40.0,9.8012,9.7902,23.2311]
[1672550966332,76.61,9.8011,9.7902,23.2311]
[1672550966529,40.0,9.801,9.7902,23.2311]
[1672550966733,76.61,9.8009,9.7902,23.2311]
[1672550966952,40.0,9.8008,9.7902,23.2311]
[1672550967276,40.0,9.8006,9.7902,23.2311]
[1672550967594,40.0,9.8004,9.7902,23.2311]
[1672550967801,40.0,9.8002,9.7902,23.2311]
[1672550968020,76.62,9.8001,9.7902,23.2311]
[1672550968227,40.0,9.8,9.7902,23.2311]
[1672550968426,40.0,9.7998,9.7902,23.2311]
[1672550968635,76.62,9.7997,9.7902,23.2311]
[1672550968956,40.0,9.7996,9.7902,23.2311]
[1672550969168,40.0,9.7994,9.7902,23.2311]
[1672550969372,76.62,9.7993,9.7902,23.2311]
[1672550969573,40.0,9.7992,9.7902,23.2311]
[1672550970102,40.0,9.799,9.7902,23.2311]
[1672550970308,40.0,9.7988,9.7902,23.2311]
[1672550970519,40.0,9.7986,9.7902,23.2311]
[1672550970729,40.0,9.7984,9.7902,23.2311]
[1672550970945,76.63,9.7983,9.7902,23.2311]
[1672550971149,40.0,9.7982,9.7902,23.2311]
[1672550971487,40.0,9.798,9.7902,23.2311]
[1672550971676,40.0,9.7978,9.7902,23.2311]
[1672550971889,76.63,9.7977,9.7902,23.2311]
[1672550972430,76.63,9.7983,9.7902,23.2311]
[1672550972641,76.62,9.7995,9.7902,23.2311]
[1672550972960,76.62,9.7995,9.7903,24.0774]
[1672550973161,74.73800823,9.8048,9.7903,24.0774]
[1672550973162,76.61,9.8009,9.7903,24.0774]
[1672550973354,40.0,9.8006,9.7904,31.1764]
[1672550973567,40.0,9.8004,9.7904,31.1764]
[1672550973774,76.61,9.8005,9.7904,31.1764]
[1672550973986,76.61,9.8009,9.7905,24.0774]
[1672550974194,76.61,9.801,9.7906,7.098]
[1672550974418,40.0,9.8009,9.7906,7.098]
[1672550974613,40.0,9.8007,9.7907,24.0774]
[1672550975259,40.0,9.8007,9.7908,22.6523]
[1672550975476,40.0,9.8005,9.7908,22.6523]
[1672550975660,76.61,9.8004,9.7908,22.6523]
[1672550975874,40.0,9.8003,9.7909,22.6523]
[1672550976085,76.61,9.8002,9.7909,22.6523]
[1672550976309,40.0,9.8001,9.7909,22.6523]
[1672550976520,40.0,9.8001,9.7902,23.2311]
[1672550976521,76.62,9.8,9.791,22.6523]
[1672550976725,40.0,9.7999,9.791,22.6523]
[1672550976937,40.0,9.7997,9.791,22.6523]
[1672550977146,76.62,9.7996,9.7911,22.6523]
[1672550977348,40.0,9.7995,9.7911,22.6523]
[1672550977684,40.0,9.7993,9.7911,22.6523]
[1672550977881,40.0,9.7991,9.7912,22.6523]
[1672550978209,76.62,9.799,9.7912,22.6523]
[1672550978522,40.0,9.7989,9.7913,22.8919]
[1672550978929,76.62,9.7992,9.7914,22.8919]
[1672550979344,40.0,9.7991,9.7914,22.8919]
[1672550979664,76.62,9.799,9.7915,22.8919]
[1672550980100,40.0,9.7989,9.7916,22.8919]
[1672550980292,76.62,9.799,9.7916,22.8919]
[1672550980503,76.61,9.8002,9.7916,22.8919]
[1672550980712,76.61,9.8004,9.7917,22.8919]
[1672550981251,40.0,9.8003,9.7917,22.8919]
[1672550981443,76.61,9.8002,9.7918,24.4054]
[1672550981875,40.0,9.8001,9.7918,24.4054]
[1672550982083,76.62,9.8,9.7919,24.4054]
[1672550982604,76.62,9.8002,9.792,24.4054]
[1672550982802,40.0,9.8001,9.792,24.4054]
[1672550983018,76.62,9.8,9.792,24.4054]
[1672550983230,40.0,9.8006,9.7921,24.4054]
[1672550983435,76.61,9.8005,9.7921,24.4054]
[1672550983658,76.61,9.8007,9.7921,24.4054]
[1672550983856,40.0,9.8006,9.7922,24.4054]
[1672550984073,76.61,9.8005,9.7922,24.4054]
[1672550984488,76.61,9.8005,9.7923,22.9402]
[1672550984942,40.0,9.8006,9.7923,22.9402]
[1672550985261,40.0,9.8004,9.7924,22.9402]
[1672550985456,76.62,9.8003,9.7924,22.9402]
[1672550985666,76.62,9.8003,9.7925,22.9402]
[1672550985873,76.61,9.8005,9.7925,22.9402]
[1672550986519,40.0,9.8004,9.7926,22.9402]
[1672550986712,76.62,9.8003,9.7926,22.9402]
[1672550986916,40.0,9.8002,9.7927,22.9402]
[1672550987249,76.62,9.8001,9.7927,22.9402]
[1672550987462,40.0,9.8,9.7928,22.9402]
[1672550987650,76.62,9.7999,9.7928,22.9402]
[1672550987861,40.0,9.7998,9.7928,22.9402]
[1672550988088,40.0,9.7996,9.7928,22.9402]
[1672550988291,40.0,9.7994,9.7928,22.9402]
[1672550988513,76.62,9.7993,9.7928,22.9402]
[1672550989142,40.0,9.7992,9.7928,22.9402]
[1672550989332,40.0,9.799,9.7928,22.9402]
[1672550989543,40.0,9.7988,9.7928,22.9402]
[1672550989760,76.63,9.7987,9.7928,22.9402]
[1672550989982,40.0,9.7986,9.7928,22.9402]
[1672550990185,40.0,9.7984,9.7928,22.9402]
[1672550990396,40.0,9.7982,9.7928,22.9402]
[1672550990593,76.63,9.7981,9.7928,22.9402]
[1672550990799,40.0,9.798,9.7928,22.9402]
[1672550991018,390.48181668,9.818,9.7928,22.9402]
[1672550991237,459.48051878,9.8151,9.7928,22.9402]
[1672550991446,23.1577,9.8018,9.7928,22.9402]
[1672550991871,40.0,9.8006,9.7928,22.9402]
[1672550992084,76.61,9.8005,9.7931,23.363]
[1672550992913,40.0,9.8006,9.7931,23.363]
[1672550993135,76.61,9.8005,9.7936,40.0]
[1672550993352,76.61,9.8007,9.7931,23.363]
[1672550993541,40.0,9.8006,9.7931,23.363]
[1672550993753,76.61,9.8005,9.7931,23.363]
[1672550993963,76.61,9.8007,9.7931,23.363]
[1672550994291,40.0,9.8006,9.7931,23.363]
[1672550994491,76.61,9.8005,9.7931,23.363]
[1672550994816,40.0,9.8004,9.7931,23.363]